bitfinex-derivatives/quotes_BNBF0:USTF0_20260221
["timestamp","ask_amount","ask_price","bid_price","bid_amount"]
[1771717640430,0.94991631,626.48,625.76,2.3913379]
[1771717640630,1.19523292,626.62,625.76,2.3913379]
[1771717640631,0.94991631,626.47,625.76,2.3913379]
[1771717640830,0.94991631,626.46,625.76,2.3913379]
[1771717641130,0.94991631,626.45,625.76,2.3913379]
[1771717641331,0.94991631,626.44,625.76,2.3913379]
[1771717641625,0.94991631,626.43,625.77,2.3913379]
[1771717641828,1.19523292,626.63,625.77,2.3913379]
[1771717644331,2.14520661,626.63,625.77,2.3913379]
[1771717644532,0.94997369,626.62,625.77,2.3913379]
[1771717644731,0.94997369,626.61,625.77,2.3913379]
[1771717644931,0.94997369,626.6,625.77,2.3913379]
[1771717645129,0.94997369,626.59,625.77,2.3913379]
[1771717645327,0.94997369,626.58,625.77,2.3913379]
[1771717645527,0.94997369,626.57,625.77,2.3913379]
[1771717645827,0.94997369,626.56,625.77,2.3913379]
[1771717646028,0.94997369,626.55,625.77,2.3913379]
[1771717646228,0.94997369,626.54,625.77,2.3913379]
[1771717646427,0.94997369,626.53,625.77,2.3913379]
[1771717646632,0.94997369,626.52,625.79,2.3913379]
[1771717646831,0.94997369,626.51,625.79,2.3913379]
[1771717647032,0.94997369,626.5,625.79,2.3913379]
[1771717647235,0.94997369,626.49,625.79,2.3913379]
[1771717647428,0.94997369,626.48,625.79,2.3913379]
[1771717647633,0.94997369,626.47,625.79,2.3913379]
[1771717647837,0.94997369,626.46,625.79,2.3913379]
[1771717648030,0.94997369,626.45,625.79,2.3913379]
[1771717648230,0.94997369,626.44,625.79,2.3913379]
[1771717648430,1.19523292,626.64,625.79,2.3913379]
[1771717648628,0.94998392,626.63,625.82,2.3913379]
[1771717648933,0.94998392,626.62,625.82,2.3913379]
[1771717649233,0.94998392,626.61,625.81,2.3913379]
[1771717649433,0.94998392,626.6,625.82,2.3913379]
[1771717649734,0.94998392,626.59,625.82,2.3913379]
[1771717649934,0.94998392,626.58,625.82,2.3913379]
[1771717650134,0.94998392,626.57,625.82,2.3913379]
[1771717650334,0.94998392,626.56,625.82,2.3913379]
[1771717650536,0.94998392,626.55,625.82,2.3913379]
[1771717650730,0.94998392,626.54,625.83,2.3913379]
[1771717650935,0.94998392,626.53,625.83,2.3913379]
[1771717651135,0.94998392,626.52,625.83,2.3913379]
[1771717651332,0.94998392,626.51,625.83,2.3913379]
[1771717651535,0.94998392,626.5,625.83,2.3913379]
[1771717651733,0.94998392,626.49,625.83,2.3913379]
[1771717651935,1.19523292,626.69,625.83,2.3913379]
[1771717652133,0.94580452,626.68,625.83,2.3913379]
[1771717652332,0.94580452,626.67,625.83,2.3913379]
[1771717652632,0.94580452,626.66,625.83,2.3913379]
[1771717652836,0.94580452,626.65,625.83,2.3913379]
[1771717653033,0.94580452,626.64,625.83,2.3913379]
[1771717653237,0.94580452,626.63,625.83,2.3913379]
[1771717653437,0.94580452,626.62,625.83,2.3913379]
[1771717653637,0.94580452,626.61,625.83,2.3913379]
[1771717653832,0.94580452,626.6,625.83,2.3913379]
[1771717654136,1.58501967,626.81,625.71,1.569]
[1771717654137,0.94580452,626.59,625.87,2.3913379]
[1771717654433,0.94580452,626.58,625.87,2.3913379]
[1771717654638,0.94580452,626.57,625.87,2.3913379]
[1771717654838,0.94580452,626.56,625.87,2.3913379]
[1771717655039,0.94580452,626.55,625.87,2.3913379]
[1771717655338,0.94580452,626.54,625.87,2.3913379]
[1771717655636,1.19523292,626.74,625.87,2.3913379]
[1771717655840,0.94549068,626.73,625.87,2.3913379]
[1771717656134,0.94549068,626.72,625.86,2.3913379]
[1771717656435,0.94549068,626.71,625.86,2.3913379]
[1771717656741,0.94549068,626.7,625.86,2.3913379]
[1771717657040,0.94549068,626.69,625.86,2.3913379]
[1771717657241,0.94549068,626.68,625.86,2.3913379]
[1771717657441,0.94549068,626.67,625.86,2.3913379]
[1771717657640,0.94549068,626.66,625.86,2.3913379]
[1771717657845,0.94549068,626.65,625.86,2.3913379]
[1771717658144,0.94549068,626.64,625.86,2.3913379]
[1771717658344,1.19523292,626.74,625.86,2.3913379]
[1771717658345,0.94549068,626.63,625.86,2.3913379]
[1771717658544,0.94549068,626.62,625.86,2.3913379]
[1771717658745,0.94549068,626.61,625.86,2.3913379]
[1771717658944,0.94549068,626.6,625.86,2.3913379]
[1771717659142,1.19523292,626.74,625.86,2.3913379]
[1771717659143,0.94549068,626.59,625.86,2.3913379]
[1771717659345,0.94549068,626.58,625.86,2.3913379]
[1771717659545,0.94549068,626.57,625.86,2.3913379]
[1771717659745,0.94549068,626.56,625.86,2.3913379]
[1771717659946,1.19523292,626.74,625.86,2.3913379]
[1771717659947,0.94549068,626.55,625.86,2.3913379]
[1771717660145,0.94549068,626.54,625.86,2.3913379]
[1771717660443,1.19523292,626.74,625.86,2.3913379]
[1771717660646,0.94542322,626.73,625.86,2.3913379]
[1771717660841,0.94542322,626.72,625.86,2.3913379]
[1771717661045,0.94542322,626.71,625.86,2.3913379]
[1771717661242,0.94542322,626.7,625.86,2.3913379]
[1771717661441,0.94542322,626.69,625.87,2.3913379]
[1771717661645,0.94542322,626.68,625.87,2.3913379]
[1771717661944,0.94542322,626.67,625.87,2.3913379]
[1771717662142,0.94542322,626.66,625.87,2.3913379]
[1771717662342,0.94542322,626.65,625.86,2.3913379]
[1771717662544,0.94542322,626.64,625.86,2.3913379]
[1771717662844,0.94542322,626.63,625.86,2.3913379]
[1771717663047,1.19523292,626.74,625.86,2.3913379]
[1771717663048,0.94542322,626.62,625.86,2.3913379]
[1771717663245,0.94542322,626.61,625.86,2.3913379]
[1771717663446,0.94542322,626.6,625.86,2.3913379]
[1771717663749,0.94542322,626.59,625.86,2.3913379]
[1771717663945,0.94542322,626.58,625.86,2.3913379]
[1771717664148,0.94542322,626.57,625.86,2.3913379]
[1771717664450,0.94542322,626.56,625.86,2.3913379]
[1771717664650,0.94542322,626.55,625.86,2.3913379]
[1771717664846,0.94542322,626.54,625.86,2.3913379]
[1771717665147,1.19523292,626.74,625.86,2.3913379]
[1771717665347,0.94533565,626.73,625.86,2.3913379]
[1771717665547,0.94533565,626.72,625.86,2.3913379]
[1771717665750,0.94533565,626.71,625.86,2.3913379]
[1771717665952,0.94533565,626.7,625.86,2.3913379]
[1771717666247,0.94533565,626.69,625.87,1.919]
[1771717666450,0.94533565,626.68,625.87,1.919]
[1771717666650,0.94533565,626.67,625.87,1.919]
[1771717666852,0.94533565,626.66,625.87,1.919]
[1771717667046,0.94533565,626.65,625.87,1.919]
[1771717667349,0.94533565,626.64,625.87,1.919]
[1771717667546,0.94533565,626.63,625.87,1.919]
[1771717667747,0.94533565,626.62,625.87,1.919]
[1771717667947,0.94533565,626.61,625.87,1.919]
[1771717668149,0.94533565,626.6,625.87,1.919]
[1771717668348,0.94533565,626.59,625.87,1.919]
[1771717668551,0.94533565,626.58,625.87,1.919]
[1771717668752,0.94533565,626.57,625.87,1.919]
[1771717669047,1.19523292,626.75,625.87,1.919]
[1771717669048,0.94533565,626.56,625.87,1.919]
[1771717669247,0.94533565,626.55,625.87,1.919]
[1771717669451,1.19523292,626.75,625.87,1.919]
[1771717669648,0.945313,626.74,625.87,1.919]
[1771717669852,0.945313,626.73,625.87,1.919]
[1771717670053,0.945313,626.72,625.87,1.919]
[1771717670348,0.945313,626.71,625.87,1.919]
[1771717670552,0.945313,626.7,625.87,1.919]
[1771717670749,0.945313,626.69,625.87,1.919]
[1771717670950,0.945313,626.68,625.87,1.919]
[1771717671147,0.945313,626.67,625.87,1.919]
[1771717671447,0.945313,626.66,625.87,1.919]
[1771717671652,0.945313,626.65,625.87,1.919]
[1771717671850,0.945313,626.64,625.87,1.919]
[1771717672049,0.945313,626.63,625.87,1.919]
[1771717672253,0.945313,626.62,625.87,1.919]
[1771717672453,0.945313,626.61,625.87,1.919]
[1771717672654,0.945313,626.6,625.87,1.919]
[1771717672954,0.945313,626.59,625.87,1.919]
[1771717673155,0.945313,626.58,625.87,1.919]
[1771717673450,0.945313,626.57,625.87,1.919]
[1771717673648,0.945313,626.56,625.87,1.919]
[1771717673850,0.945313,626.55,625.87,1.919]
[1771717674153,0.945313,626.54,625.87,1.919]
[1771717674351,1.19523292,626.74,625.87,4.3103379]
[1771717674548,0.94545376,626.73,625.87,4.3103379]
[1771717674850,0.94545376,626.72,625.87,4.3103379]
[1771717675050,0.94545376,626.71,625.87,4.3103379]
[1771717675249,0.94545376,626.7,625.87,4.3103379]
[1771717675449,0.94545376,626.69,625.87,4.3103379]
[1771717675651,0.94545376,626.68,625.87,4.3103379]
[1771717675950,0.94545376,626.67,625.87,4.3103379]
[1771717676150,0.94545376,626.66,625.87,4.3103379]
[1771717676349,0.94545376,626.65,625.87,4.3103379]
[1771717676550,0.94545376,626.64,625.87,4.3103379]
[1771717676749,0.94545376,626.63,625.87,4.3103379]
[1771717676954,0.94545376,626.62,625.87,4.3103379]
[1771717677155,0.94545376,626.61,625.87,4.3103379]
[1771717677453,0.94545376,626.6,625.87,4.3103379]
[1771717677649,0.94545376,626.59,625.87,4.3103379]
[1771717677854,0.94545376,626.58,625.87,4.3103379]
[1771717678054,0.94545376,626.57,625.87,4.3103379]
[1771717678253,2.38219448,626.96,625.87,1.919]
[1771717678254,0.94545376,626.56,625.87,1.919]
[1771717678449,0.94545376,626.55,625.87,1.919]
[1771717678755,0.94545376,626.54,625.87,1.919]
[1771717678954,0.94545376,626.53,625.87,1.919]
[1771717679153,0.94545376,626.52,625.87,1.919]
[1771717679353,0.94545376,626.51,625.87,1.919]
[1771717679550,0.94545376,626.5,625.87,1.919]
[1771717679751,0.94545376,626.49,625.87,1.919]
[1771717680059,0.96307955,626.48,625.87,1.919]
[1771717680252,0.96307955,626.47,625.87,1.919]
[1771717680451,1.19523292,626.67,625.87,1.919]
[1771717680652,0.9631312,626.66,625.87,1.919]
[1771717680850,0.9631312,626.65,625.87,1.919]
[1771717681055,0.9631312,626.64,625.87,1.919]
[1771717681255,0.9631312,626.63,625.87,1.919]
[1771717681551,0.9631312,626.62,625.87,1.919]
[1771717681752,0.9631312,626.61,625.87,1.919]
[1771717681955,0.9631312,626.6,625.87,1.919]
[1771717682154,0.9631312,626.59,625.87,1.919]
[1771717682355,0.9631312,626.58,625.87,1.919]
[1771717682552,0.9631312,626.57,625.87,1.919]
[1771717682853,0.9631312,626.56,625.87,1.919]
[1771717683053,1.19523292,626.66,625.87,1.919]
[1771717683753,2.15854042,626.65,625.87,1.919]
[1771717683956,0.9633075,626.64,625.87,1.919]
[1771717684156,0.9633075,626.63,625.87,1.919]
[1771717684354,0.9633075,626.62,625.87,1.919]
[1771717684553,0.9633075,626.61,625.87,1.919]
[1771717684858,0.9633075,626.6,625.87,1.919]
[1771717685054,0.9633075,626.59,625.87,1.919]
[1771717685257,0.9633075,626.58,625.87,1.919]
[1771717685455,0.9633075,626.57,625.87,1.919]
[1771717685656,0.9633075,626.56,625.87,1.919]
[1771717685855,0.9633075,626.55,625.87,1.919]
[1771717686059,0.9633075,626.54,625.87,1.919]
[1771717686261,0.9633075,626.53,625.87,1.919]
[1771717686557,0.9633075,626.52,625.87,1.919]
[1771717686755,0.9633075,626.51,625.87,1.919]
[1771717686958,0.9633075,626.5,625.87,1.919]
[1771717687156,0.9633075,626.49,625.87,1.919]
[1771717687457,0.9633075,626.48,625.87,1.919]
[1771717687657,1.19523292,626.64,625.87,1.919]
[1771717687658,0.9633075,626.47,625.87,1.919]
[1771717687958,0.9633075,626.46,625.87,1.919]
[1771717688161,0.9633075,626.45,625.87,1.919]
[1771717688456,0.9633075,626.44,625.87,1.919]
[1771717688661,1.19523292,626.64,625.87,1.919]
[1771717690259,2.15909582,626.63,625.87,1.919]
[1771717690559,0.9638629,626.62,625.87,1.919]
[1771717690762,0.9638629,626.61,625.87,1.919]
[1771717690963,0.9638629,626.6,625.87,1.919]
[1771717691165,0.9638629,626.59,625.87,1.919]
[1771717691463,0.9638629,626.58,625.87,1.919]
[1771717691762,0.9638629,626.57,625.87,1.919]
[1771717691963,0.9638629,626.56,625.87,1.919]
[1771717692163,0.9638629,626.55,625.87,1.919]
[1771717692362,0.9638629,626.54,625.87,1.919]
[1771717692565,0.9638629,626.53,625.87,1.919]
[1771717692865,0.9638629,626.52,625.87,1.919]
[1771717693062,0.9638629,626.51,625.87,1.919]
[1771717693265,0.9638629,626.5,625.87,1.919]
[1771717693564,0.9638629,626.49,625.87,1.919]
[1771717693760,0.9638629,626.48,625.87,1.919]
[1771717693962,0.9638629,626.47,625.87,1.919]
[1771717694161,0.9638629,626.46,625.87,1.919]
[1771717694464,0.9638629,626.45,625.87,1.919]
[1771717694664,0.9638629,626.44,625.87,1.919]
[1771717694961,0.9638629,626.43,625.87,1.919]
[1771717695162,1.19523292,626.63,625.83,2.3913379]
[1771717697668,2.15948389,626.63,625.83,2.3913379]
[1771717697865,0.96425097,626.62,625.83,2.3913379]
[1771717698071,0.96425097,626.61,625.84,1.502]
[1771717698370,0.96425097,626.6,625.84,1.502]
[1771717698569,0.96425097,626.59,625.84,1.502]
[1771717698868,0.96425097,626.58,625.84,1.502]
[1771717699066,0.96425097,626.57,625.84,1.502]
[1771717699270,0.96425097,626.56,625.84,1.502]
[1771717699466,1.19523292,626.63,625.84,1.502]
[1771717699467,0.96425097,626.55,625.84,1.502]
[1771717699665,0.96425097,626.54,625.84,1.502]
[1771717699877,0.96425097,626.53,625.84,1.502]
[1771717700166,0.96425097,626.52,625.84,1.502]
[1771717700366,0.96425097,626.51,625.84,1.502]
[1771717700567,0.96425097,626.5,625.84,1.502]
[1771717700767,0.96425097,626.49,625.84,1.502]
[1771717700968,0.96425097,626.48,625.84,1.502]
[1771717701171,0.96425097,626.47,625.84,1.502]
[1771717701372,0.96425097,626.46,625.84,1.502]
[1771717701573,0.96425097,626.45,625.84,1.502]
[1771717701769,0.96425097,626.44,625.84,1.502]
[1771717701973,0.96425097,626.43,625.84,1.502]
[1771717702269,1.19523292,626.63,625.84,1.502]
[1771717704772,2.15942394,626.63,625.84,1.502]
[1771717704973,0.96419102,626.62,625.84,1.502]
[1771717705175,0.96419102,626.61,625.84,1.502]
[1771717705375,0.96419102,626.6,625.84,1.502]
[1771717705573,0.96419102,626.59,625.84,1.502]
[1771717705772,0.96419102,626.58,625.84,1.502]
[1771717706074,0.96419102,626.57,625.84,1.502]
[1771717706274,0.96419102,626.56,625.84,1.502]
[1771717706471,0.96419102,626.55,625.84,1.502]
[1771717706672,0.96419102,626.54,625.84,1.502]
[1771717706875,0.96419102,626.53,625.84,1.502]
[1771717707072,0.96419102,626.52,625.84,1.502]
[1771717707271,0.96419102,626.51,625.84,1.502]
[1771717707473,0.96419102,626.5,625.84,1.502]
[1771717707673,0.96419102,626.49,625.84,1.502]
[1771717707877,0.96419102,626.48,625.84,1.502]
[1771717708074,0.96419102,626.47,625.84,1.502]
[1771717708274,0.96419102,626.46,625.84,1.502]
[1771717708475,0.96419102,626.45,625.84,1.502]
[1771717708676,0.96419102,626.44,625.84,1.502]
[1771717708881,0.96419102,626.43,625.84,1.502]
[1771717709081,1.19523292,626.63,625.84,1.502]
[1771717710179,1.19523292,626.63,625.84,3.8933379]
[1771717711379,2.15947248,626.63,625.84,3.8933379]
[1771717711577,0.96423956,626.62,625.84,3.8933379]
[1771717711778,0.96423956,626.61,625.84,3.8933379]
[1771717711981,0.96423956,626.6,625.84,3.8933379]
[1771717712180,0.96423956,626.59,625.84,3.8933379]
[1771717712379,0.96423956,626.58,625.84,3.8933379]
[1771717712583,0.96423956,626.57,625.84,3.8933379]
[1771717712782,0.96423956,626.56,625.84,3.8933379]
[1771717713079,0.96423956,626.55,625.84,3.8933379]
[1771717713281,0.96423956,626.54,625.84,3.8933379]
[1771717713481,0.96423956,626.53,625.84,3.8933379]
[1771717713683,0.96423956,626.52,625.84,3.8933379]
[1771717713881,0.96423956,626.51,625.84,3.8933379]
[1771717714086,0.96423956,626.5,625.84,3.8933379]
[1771717714384,0.96423956,626.49,625.84,3.8933379]
[1771717714585,0.96423956,626.48,625.84,3.8933379]
[1771717714787,0.96423956,626.47,625.84,3.8933379]
[1771717714985,0.96423956,626.46,625.84,3.8933379]
[1771717715183,0.96423956,626.45,625.84,3.8933379]
[1771717715386,0.96423956,626.44,625.84,3.8933379]
[1771717715585,0.96423956,626.43,625.84,3.8933379]
[1771717715787,1.19523292,626.63,625.84,3.8933379]
[1771717716283,2.15826833,626.62,625.84,3.8933379]
[1771717716483,0.96303541,626.61,625.84,3.8933379]
[1771717716688,0.96303541,626.6,625.84,3.8933379]
[1771717716882,0.96303541,626.59,625.84,3.8933379]
[1771717717084,0.96303541,626.58,625.84,3.8933379]
[1771717717282,0.96303541,626.57,625.84,3.8933379]
[1771717717482,1.19523292,626.62,625.84,3.8933379]
[1771717717483,0.96303541,626.56,625.84,3.8933379]
[1771717717688,0.96303541,626.55,625.84,3.8933379]
[1771717717887,0.96303541,626.54,625.84,3.8933379]
[1771717718084,0.96303541,626.53,625.84,3.8933379]
[1771717718284,0.96303541,626.52,625.84,3.8933379]
[1771717718484,0.96303541,626.51,625.84,3.8933379]
[1771717718685,0.96303541,626.5,625.84,3.8933379]
[1771717718988,0.96303541,626.49,625.84,3.8933379]
[1771717719188,0.96303541,626.48,625.84,3.8933379]
[1771717719387,0.96303541,626.47,625.84,3.8933379]
[1771717719585,0.96303541,626.46,625.84,3.8933379]
[1771717719790,0.96303541,626.45,625.84,3.8933379]
[1771717719987,0.96303541,626.44,625.84,3.8933379]
[1771717720186,0.96303541,626.43,625.84,3.8933379]
[1771717720391,1.19523292,626.62,625.84,3.8933379]
[1771717720392,0.96303541,626.42,625.85,2.3913379]
[1771717720588,1.19523292,626.62,625.85,2.3913379]
[1771717722292,2.15856124,626.61,625.85,2.3913379]
[1771717722488,0.96332832,626.6,625.85,2.3913379]
[1771717722688,0.96332832,626.59,625.85,2.3913379]
[1771717722891,0.96332832,626.58,625.85,2.3913379]
[1771717723190,0.96332832,626.57,625.86,2.3913379]
[1771717723389,0.96332832,626.56,625.86,2.3913379]
[1771717723594,0.96332832,626.55,625.86,2.3913379]
[1771717723791,0.96332832,626.54,625.86,2.3913379]
[1771717724092,0.96332832,626.53,625.86,2.3913379]
[1771717724294,0.96332832,626.52,625.86,2.3913379]
[1771717724494,1.19523292,626.61,625.86,2.3913379]
[1771717724495,0.96332832,626.51,625.86,2.3913379]
[1771717724690,0.96332832,626.5,625.86,2.3913379]
[1771717724893,0.96332832,626.49,625.86,2.3913379]
[1771717725090,1.19523292,626.47,625.84,1.502]
[1771717725290,1.19523292,626.45,625.84,1.502]
[1771717725494,0.96332832,626.44,625.84,1.502]
[1771717725696,0.96332832,626.43,625.84,1.502]
[1771717725996,0.96332832,626.42,625.84,1.502]
[1771717726197,0.96332832,626.41,625.84,1.502]
[1771717726395,0.96332832,626.4,625.84,1.502]
[1771717726593,0.96332832,626.39,625.84,1.502]
[1771717726794,1.58501967,626.57,625.84,1.502]
[1771717726795,0.96332832,626.38,625.84,1.502]
[1771717726996,0.96332832,626.37,625.84,1.502]
[1771717727196,0.96332832,626.36,625.84,1.502]
[1771717727497,3.97653623,627.09,625.84,1.502]
[1771717727498,0.96332832,626.35,625.84,1.502]
[1771717727796,0.96332832,626.34,625.84,1.502]
[1771717727997,0.96332832,626.33,625.84,1.502]
[1771717728193,0.96332832,626.32,625.84,1.502]
[1771717728396,0.96332832,626.31,625.84,1.502]
[1771717728597,0.96332832,626.3,625.84,1.502]
[1771717728794,0.96332832,626.29,625.84,1.502]
[1771717728997,0.96332832,626.28,625.84,1.502]
[1771717729197,0.96332832,626.27,625.84,1.502]
[1771717729398,0.96332832,626.26,625.84,1.502]
[1771717729593,0.96332832,626.25,625.84,1.502]
[1771717729798,0.96332832,626.24,625.84,1.502]
[1771717730001,1.19523292,626.44,625.84,1.502]
[1771717730298,0.96125803,626.43,625.84,1.502]
[1771717730493,0.96125803,626.42,625.84,1.502]
[1771717730697,0.96125803,626.41,625.84,1.502]
[1771717730895,0.96125803,626.4,625.84,1.502]
[1771717731194,0.96125803,626.39,625.84,1.502]
[1771717731497,0.96125803,626.38,625.84,1.502]
[1771717731695,0.96125803,626.37,625.84,1.502]
[1771717731900,0.96125803,626.36,625.84,1.502]
[1771717732100,0.96125803,626.35,625.84,1.502]
[1771717732300,0.96125803,626.34,625.84,1.502]
[1771717732504,0.96125803,626.33,625.84,1.502]
[1771717732697,0.96125803,626.32,625.84,1.502]
[1771717732897,0.96125803,626.31,625.84,1.502]
[1771717733098,0.96125803,626.3,625.84,1.502]
[1771717733299,0.96125803,626.29,625.84,1.502]
[1771717733499,0.96125803,626.28,625.84,1.502]
[1771717733799,0.96125803,626.27,625.84,1.502]
[1771717734004,0.96125803,626.26,625.84,1.502]
[1771717734202,1.19523292,626.46,625.84,1.502]
[1771717734402,0.95976491,626.45,625.84,1.502]
[1771717734600,0.95976491,626.44,625.84,1.502]
[1771717734800,0.95976491,626.43,625.84,1.502]
[1771717735103,0.95976491,626.42,625.84,1.502]
[1771717735301,1.19523292,626.4,625.84,1.502]
[1771717735501,0.95976491,626.39,625.84,1.502]
[1771717735700,0.95976491,626.38,625.84,1.502]
[1771717735900,0.95976491,626.37,625.84,1.502]
[1771717736099,0.95976491,626.36,625.84,1.502]
[1771717736304,0.95976491,626.35,625.84,1.502]
[1771717736603,0.95976491,626.34,625.84,1.502]
[1771717736799,0.95976491,626.33,625.84,1.502]
[1771717737003,0.95976491,626.32,625.84,1.502]
[1771717737204,0.95976491,626.31,625.84,1.502]
[1771717737401,0.95976491,626.3,625.84,1.502]
[1771717737602,0.95976491,626.29,625.84,1.502]
[1771717737900,0.95976491,626.28,625.84,1.502]
[1771717738098,0.95976491,626.27,625.84,1.502]
[1771717738303,0.95976491,626.26,625.84,1.502]
[1771717738500,0.95976491,626.25,625.84,1.502]
[1771717738704,0.95976491,626.24,625.84,1.502]
[1771717738902,0.95976491,626.23,625.84,1.502]
[1771717739101,0.95976491,626.22,625.84,1.502]
[1771717739304,0.95976491,626.21,625.84,1.502]
[1771717739504,0.95976491,626.2,625.84,1.502]
[1771717739705,0.95976491,626.19,625.84,1.502]
[1771717739902,1.19523292,626.39,625.84,1.502]
[1771717740102,1.19523292,626.35,625.84,1.502]
[1771717740403,0.95843715,626.34,625.84,1.502]
[1771717740603,0.95843715,626.33,625.84,1.502]
[1771717740808,0.95843715,626.32,625.84,1.502]
[1771717741108,0.95843715,626.31,625.84,1.502]
[1771717741305,0.95843715,626.3,625.84,1.502]
[1771717741505,0.95843715,626.29,625.84,1.502]
[1771717741709,0.95843715,626.28,625.84,1.502]
[1771717742008,0.95843715,626.27,625.84,1.502]
[1771717742208,0.95843715,626.26,625.84,1.502]
[1771717742408,0.95843715,626.25,625.84,1.502]
[1771717742606,0.95843715,626.24,625.84,1.502]
[1771717742907,0.95843715,626.23,625.84,1.502]
[1771717743108,0.95843715,626.22,625.84,1.502]
[1771717743312,0.95843715,626.21,625.84,1.502]
[1771717743511,0.95843715,626.2,625.84,1.502]
[1771717743712,0.95843715,626.19,625.84,1.502]
[1771717743912,0.95843715,626.18,625.84,1.502]
[1771717744113,0.95843715,626.17,625.84,1.502]
[1771717744314,1.19523292,626.37,625.84,1.502]
[1771717744515,0.98435611,626.36,625.84,1.502]
[1771717744714,0.98435611,626.35,625.84,1.502]
[1771717744911,0.98435611,626.34,625.84,1.502]
[1771717745214,0.98435611,626.33,625.84,1.502]
[1771717745414,0.98435611,626.32,625.84,1.502]
[1771717745614,0.98435611,626.31,625.84,1.502]
[1771717745913,0.98435611,626.3,625.84,1.502]
[1771717746114,0.98435611,626.29,625.84,1.502]
[1771717746314,0.98435611,626.28,625.84,1.502]
[1771717746514,0.98435611,626.27,625.84,1.502]
[1771717746814,0.98435611,626.26,625.84,1.502]
[1771717747010,0.98435611,626.25,625.84,1.502]
[1771717747215,0.98435611,626.24,625.84,1.502]
[1771717747414,0.98435611,626.23,625.84,1.502]
[1771717747714,0.98435611,626.22,625.84,1.502]
[1771717747915,0.98435611,626.21,625.84,1.502]
[1771717748111,1.19523292,626.37,625.84,1.502]
[1771717748112,0.98435611,626.2,625.84,1.502]
[1771717748313,0.98435611,626.19,625.84,1.502]
[1771717748512,0.98435611,626.18,625.84,1.502]
[1771717748816,1.19523292,626.38,625.84,1.502]
[1771717749013,0.98390198,626.37,625.84,1.502]
[1771717749217,0.98390198,626.36,625.84,1.502]
[1771717749419,0.98390198,626.35,625.84,1.502]
[1771717749613,0.98390198,626.34,625.84,1.502]
[1771717749818,0.98390198,626.33,625.84,1.502]
[1771717750018,0.98390198,626.32,625.84,1.502]
[1771717750219,0.98390198,626.31,625.84,1.502]
[1771717750519,0.98390198,626.3,625.84,1.502]
[1771717750719,0.98390198,626.29,625.84,1.502]
[1771717750920,0.98390198,626.28,625.84,1.502]
[1771717751220,0.98390198,626.27,625.84,1.502]
[1771717751415,0.98390198,626.26,625.84,1.502]
[1771717751615,0.98390198,626.25,625.84,1.502]
[1771717751821,0.98390198,626.24,625.84,1.502]
[1771717752119,0.98390198,626.23,625.84,1.502]
[1771717752317,0.98390198,626.22,625.84,1.502]
[1771717752617,0.98390198,626.21,625.84,1.502]
[1771717752816,0.98390198,626.2,625.84,1.502]
[1771717753117,0.98390198,626.19,625.84,1.502]
[1771717753315,0.98390198,626.18,625.84,1.502]
[1771717753615,0.98390198,626.17,625.84,1.502]
[1771717753819,1.19523292,626.37,625.84,1.502]
[1771717754019,0.98383082,626.36,625.84,1.502]
[1771717754218,0.98383082,626.35,625.84,1.502]
[1771717754419,0.98383082,626.34,625.84,1.502]
[1771717754621,0.98383082,626.33,625.84,1.502]
[1771717754918,0.98383082,626.32,625.84,1.502]
[1771717755122,0.98383082,626.31,625.84,1.502]
[1771717755421,0.98383082,626.3,625.84,1.502]
[1771717755617,0.98383082,626.29,625.84,1.502]
[1771717755922,0.98383082,626.28,625.84,1.502]
[1771717756122,0.98383082,626.27,625.84,1.502]
[1771717756323,0.98383082,626.26,625.84,1.502]
[1771717756617,0.98383082,626.25,625.84,1.502]
[1771717756824,0.98383082,626.24,625.84,1.502]
[1771717757024,0.98383082,626.23,625.6,0.27795638]
[1771717757219,0.98383082,626.22,625.6,0.27795638]
[1771717757423,0.98383082,626.21,625.6,0.27795638]
[1771717757723,0.98383082,626.2,625.6,0.27795638]
[1771717757924,0.98383082,626.19,625.6,0.27795638]
[1771717758121,0.98383082,626.18,625.6,0.27795638]
[1771717758320,0.98383082,626.17,625.6,0.27795638]
[1771717758622,0.98383082,626.16,625.6,0.27795638]